bitfinex-derivatives/quotes_BTCF0:USTF0_20260315
["timestamp","ask_amount","ask_price","bid_price","bid_amount"]
[1773540005375,0.0014,71079.0,71060.0,0.042207]
[1773540005376,0.08914719,71072.0,71060.0,0.042207]
[1773540005782,0.00280042,71071.0,71060.0,0.042207]
[1773540005977,0.0014,71071.0,71060.0,0.042207]
[1773540008478,0.0014,71071.0,71060.0,0.01856893]
[1773540009584,0.0014,71071.0,71061.0,0.042206]
[1773540009774,0.09054719,71071.0,71055.0,0.01856893]
[1773540009978,0.00140042,71070.0,71055.0,0.01856893]
[1773540010281,0.042203,71068.0,71055.0,0.01856893]
[1773540011181,0.13135119,71065.0,71051.0,0.01856893]
[1773540011382,0.0014,71064.0,71051.0,0.01856893]
[1773540014484,0.0014,71064.0,71052.0,0.01856893]
[1773540014982,0.0014,71064.0,71052.0,0.06077993]
[1773540015182,0.0014,71064.0,71053.0,0.01856893]
[1773540015779,0.0014,71069.0,71053.0,0.01856893]
[1773540015975,0.01126,71073.0,71051.0,0.01856893]
[1773540016189,0.00140042,71070.0,71051.0,0.01856893]
[1773540016989,0.00140042,71070.0,71060.0,0.06077593]
[1773540017188,0.00140042,71070.0,71061.0,0.01856893]
[1773540020992,0.00140042,71070.0,71061.0,0.06077493]
[1773540022086,0.043599,71074.0,71061.0,0.06077493]
[1773540022292,0.00140042,71073.0,71061.0,0.06077493]
[1773540023489,0.00140042,71073.0,71062.0,0.06348697]
[1773540023886,0.0014,71074.0,71063.0,0.06348697]
[1773540025085,0.0014,71074.0,71065.0,0.042204]
[1773540025287,0.01126,71081.0,71061.0,0.02128197]
[1773540025491,0.0014,71080.0,71061.0,0.02128197]
[1773540026391,0.0014,71080.0,71060.0,0.08914719]
[1773540026392,0.0014,71080.0,71072.0,0.042199]
[1773540026594,0.0014,71082.0,71074.0,0.02128197]
[1773540026792,0.0014,71082.0,71074.0,0.02132199]
[1773540027885,0.0014,71086.0,71074.0,0.02132199]
[1773540028196,0.0028,71086.0,71077.0,0.02128197]
[1773540028396,0.0028,71086.0,71077.0,0.02132199]
[1773540029293,0.0014,71085.0,71077.0,0.02132199]
[1773540030197,0.0014,71086.0,71077.0,0.06351799]
[1773540030583,0.0028,71086.0,71077.0,0.06351799]
[1773540031589,0.0014,71086.0,71077.0,0.06351799]
[1773540031789,0.0028,71086.0,71077.0,0.06351799]
[1773540032496,0.0028,71086.0,71077.0,0.02132199]
[1773540036097,0.01126,71093.0,71077.0,0.02132199]
[1773540036301,0.0014,71092.0,71078.0,0.02128197]
[1773540036796,0.0014,71091.0,71081.0,0.042194]
[1773540037100,0.0014,71091.0,71082.0,0.042194]
[1773540040705,0.0014,71091.0,71081.0,4.002e-05]
[1773540041103,0.043589,71091.0,71081.0,4.002e-05]
[1773540042713,0.0014,71091.0,71081.0,4.002e-05]
[1773540047914,0.043589,71091.0,71081.0,4.002e-05]
[1773540048412,0.0014,71091.0,71081.0,4.002e-05]
[1773540050201,0.02905036,71100.0,71081.0,4.002e-05]
[1773540050406,0.02551607,71113.0,71081.0,4.002e-05]
[1773540050407,0.042179,71107.0,71093.0,0.042187]
[1773540050604,0.04358,71106.0,71093.0,4.002e-05]
[1773540050810,0.042181,71104.0,71093.0,4.002e-05]
[1773540051217,0.0014,71103.0,71093.0,4.002e-05]
[1773540054621,0.01125,71114.0,71093.0,4.002e-05]
[1773540054622,0.02513774,71162.0,71105.0,0.281202]
[1773540054826,0.042152,71153.0,71133.0,0.042163]
[1773540055014,0.04215,71156.0,71140.0,0.08909459]
[1773540055312,1.02595249,71159.0,71140.0,4.002e-05]
[1773540055313,0.042152,71153.0,71140.0,4.002e-05]
[1773540055507,0.0014,71155.0,71130.0,0.09049459]
[1773540055508,0.08909459,71150.0,71130.0,0.0014]
[1773540055708,0.01964182,71139.0,71131.0,0.31251538]
[1773540055912,0.08909459,71140.0,71119.0,0.16769938]
[1773540055913,0.02104182,71138.0,71119.0,0.16769938]
[1773540056220,0.97879249,71137.0,71124.0,0.042169]
[1773540056518,0.99843431,71137.0,71124.0,0.042169]
[1773540056718,0.99843431,71137.0,71125.0,0.042168]
[1773540056922,0.04716,71136.0,71125.0,0.042168]
[1773540057322,0.06680182,71136.0,71125.0,0.042168]
[1773540058117,0.01964182,71135.0,71125.0,0.042168]
[1773540058824,0.01964182,71133.0,71125.0,0.02932304]
[1773540059215,0.97879249,71134.0,71119.0,0.01938014]
[1773540059216,0.0014,71132.0,71119.0,0.01938014]
[1773540059421,0.97879249,71134.0,71128.0,0.042166]
[1773540059724,0.0014,71133.0,71128.0,0.042166]
[1773540059919,0.0014,71132.0,71128.0,0.042166]
[1773540060114,0.0014,71131.0,71128.0,0.042166]
[1773540060318,0.97879249,71134.0,71128.0,0.042166]
[1773540060520,0.0014,71133.0,71128.0,0.042166]
[1773540060920,0.0014,71132.0,71128.0,0.042166]
[1773540061119,0.0014,71131.0,71128.0,0.042166]
[1773540061323,0.08909459,71150.0,71122.0,0.01938014]
[1773540061520,0.0014,71149.0,71139.0,0.04216]
[1773540061721,0.0014,71148.0,71139.0,0.04216]
[1773540062220,0.93441324,71147.0,71133.0,0.01938014]
[1773540062421,1.02210783,71150.0,71133.0,0.01938014]
[1773540062626,0.0014,71149.0,71133.0,0.01938014]
[1773540062825,0.0014,71149.0,71140.0,0.042159]
[1773540063629,0.0014,71149.0,71142.0,0.042158]
[1773540063826,0.93301324,71148.0,71142.0,0.042158]
[1773540064027,0.0014,71147.0,71142.0,0.042158]
[1773540064329,0.93301324,71153.0,71142.0,0.042158]
[1773540064524,0.0014,71152.0,71144.0,0.042157]
[1773540065731,0.0014,71153.0,71131.0,0.01938014]
[1773540065932,0.01125,71160.0,71133.0,0.01938014]
[1773540066241,0.93301324,71159.0,71147.0,0.01938014]
[1773540066439,0.0014,71158.0,71145.0,0.042156]
[1773540066745,0.01964182,71156.0,71139.0,0.0014]
[1773540067837,0.01964182,71156.0,71144.0,0.042156]
[1773540069743,0.01964182,71156.0,71145.0,0.042156]
[1773540069944,0.93301324,71155.0,71145.0,0.042156]
[1773540070143,0.06613167,71163.0,71141.0,0.0014]
[1773540070345,0.06613167,71163.0,71131.0,0.02365143]
[1773540070346,0.02398567,71162.0,71142.0,0.0014]
[1773540070542,0.02398567,71162.0,71142.0,0.02078014]
[1773540071344,0.042146,71163.0,71142.0,0.02078014]
[1773540071942,0.042146,71163.0,71148.0,0.042154]
[1773540072550,0.0014,71166.0,71142.0,0.02078014]
[1773540072847,0.042145,71164.0,71143.0,0.01938014]
[1773540073048,0.042146,71163.0,71148.0,0.042154]
[1773540073350,0.042146,71163.0,71142.0,0.0014]
[1773540073351,0.0014,71164.0,71147.0,0.01938014]
[1773540073646,0.01124,71169.0,71147.0,0.01938014]
[1773540073844,0.0014,71168.0,71153.0,0.042151]
[1773540074751,0.042148,71160.0,71146.0,0.042156]
[1773540074952,0.0671241,71160.0,71146.0,0.042156]
[1773540075157,0.042148,71159.0,71146.0,0.04219602]
[1773540075447,0.0249761,71160.0,71146.0,0.04219602]
[1773540075651,0.0249761,71160.0,71147.0,0.042155]
[1773540076650,0.0249761,71160.0,71148.0,0.042154]
[1773540076841,0.0249761,71160.0,71148.0,0.04219402]
[1773540077044,0.0014,71160.0,71148.0,0.04219402]
[1773540077243,0.0014,71160.0,71150.0,0.042153]
[1773540077443,0.0014,71164.0,71152.0,0.01938014]
[1773540077639,0.0014,71167.0,71156.0,0.04215]
[1773540077846,0.0014,71166.0,71156.0,0.04219002]
[1773540078246,0.0014,71165.0,71156.0,0.04219002]
[1773540078447,0.01124,71169.0,71159.0,0.042148]
[1773540078648,0.02415249,71182.0,71160.0,0.01938014]
[1773540078844,0.02429237,71187.0,71172.0,0.04214]
[1773540079155,0.0014,71180.0,71172.0,4.002e-05]
[1773540079347,0.0014,71180.0,71172.0,0.04218002]
[1773540079548,0.0014,71180.0,71172.0,4.002e-05]
[1773540080450,0.0014,71180.0,71173.0,0.04214]
[1773540080652,0.02624633,71192.0,71172.0,0.01942016]
[1773540080852,0.02624633,71192.0,71173.0,0.33495281]
[1773540081150,0.02649835,71184.0,71174.0,0.31557267]
[1773540081350,0.02649835,71181.0,71162.0,0.16909938]
[1773540081551,0.05092341,71178.0,71161.0,0.0014]
[1773540081751,0.08894441,71200.0,71160.0,0.16769938]
[1773540081752,0.05232341,71177.0,71160.0,0.16769938]
[1773540081953,0.05092341,71175.0,71161.0,0.042147]
[1773540082149,0.0014,71174.0,71162.0,0.042146]
[1773540082349,0.0014,71174.0,71163.0,0.042145]
[1773540083353,0.0014,71174.0,71164.0,0.042145]
[1773540083552,0.0014,71174.0,71163.0,0.042145]
[1773540083752,0.0014,71174.0,71162.0,0.042146]
[1773540084456,0.0014,71174.0,71161.0,0.16769938]
[1773540084657,0.0014,71173.0,71163.0,0.042146]
[1773540084867,0.0014,71172.0,71158.0,0.0014]
[1773540085161,0.0014,71172.0,71158.0,0.05358773]
[1773540085462,0.0014,71172.0,71164.0,0.042145]
[1773540086057,0.0014,71171.0,71165.0,0.042144]
[1773540086562,0.0014,71174.0,71167.0,0.042143]
[1773540087065,0.0014,71174.0,71164.0,0.042145]
[1773540087563,0.0014,71174.0,71165.0,0.042144]
[1773540087755,0.0014,71174.0,71166.0,0.042143]
[1773540087958,0.042135,71181.0,71168.0,0.042143]
[1773540088158,0.0014,71180.0,71168.0,0.042143]
[1773540089360,0.01124,71186.0,71165.0,0.05218773]
[1773540089559,0.01124,71186.0,71158.0,0.0014]
[1773540089560,0.0014,71185.0,71175.0,0.042138]
[1773540090059,0.0014,71184.0,71177.0,0.042137]
[1773540090562,0.0014,71189.0,71170.0,0.05218773]
[1773540090863,0.03118036,71206.0,71184.0,0.042133]
[1773540090864,0.042125,71199.0,71184.0,0.042133]
[1773540091058,0.0014,71198.0,71186.0,0.042132]
[1773540092261,0.0024,71198.0,71186.0,0.042132]
[1773540092861,0.0014,71198.0,71187.0,0.042131]
[1773540093055,0.0014,71198.0,71185.0,0.042133]
[1773540093256,0.043525,71198.0,71185.0,0.042133]
[1773540093561,0.0014,71197.0,71186.0,0.05218773]
[1773540093760,0.0014,71196.0,71187.0,0.042131]
[1773540094163,0.05092341,71209.0,71188.0,0.05218773]
[1773540094462,0.042121,71205.0,71190.0,0.04213]
[1773540094855,0.042122,71204.0,71190.0,0.04213]
[1773540095060,0.0014,71209.0,71195.0,0.042126]
[1773540095366,0.0014,71209.0,71178.0,0.16769938]
[1773540095367,0.0014,71208.0,71198.0,0.042125]
[1773540095565,0.0014,71208.0,71193.0,0.05218773]
[1773540095566,0.01124,71210.0,71193.0,0.05218773]
[1773540095966,0.0014,71209.0,71198.0,0.042124]
[1773540096665,0.0014,71209.0,71193.0,0.05218773]
[1773540096865,0.0014,71209.0,71196.0,0.042126]
[1773540097165,0.04211,71224.0,71200.0,0.05218773]
[1773540097368,0.05092341,71223.0,71201.0,0.30569387]
[1773540097556,0.0014,71222.0,71202.0,0.30569387]
[1773540097760,0.0014,71222.0,71203.0,0.30569387]
[1773540097955,0.0014,71222.0,71204.0,0.30709387]
[1773540098157,0.01259,71222.0,71209.0,0.042118]
[1773540098463,0.01259,71222.0,71210.0,0.042117]
[1773540098767,0.00135,71222.0,71210.0,0.042117]
[1773540099062,0.00135,71222.0,71204.0,0.05358773]
[1773540099666,0.00135,71222.0,71210.0,0.042118]
[1773540100065,0.00135,71222.0,71212.0,0.042117]
[1773540100267,0.00135,71222.0,71212.0,0.04215703]
[1773540100867,0.043461,71222.0,71212.0,4.003e-05]
[1773540101067,0.05092341,71224.0,71212.0,4.003e-05]
[1773540101068,0.05232341,71224.0,71212.0,4.003e-05]
[1773540101265,0.005,71268.0,71233.0,0.02105245]
[1773540101464,0.042085,71266.0,71235.0,0.05218773]
[1773540101661,0.05092341,71267.0,71236.0,0.30453551]
[1773540101860,0.042091,71255.0,71237.0,0.30453551]
[1773540102066,0.05232341,71254.0,71237.0,4.003e-05]
[1773540102262,0.0014,71254.0,71240.0,0.05218773]
[1773540102467,0.05092341,71260.0,71246.0,0.042097]
[1773540102662,0.05092341,71260.0,71246.0,4.003e-05]
[1773540102870,0.0014,71259.0,71251.0,0.042093]
[1773540103064,0.05092341,71276.0,71251.0,4.003e-05]
[1773540103258,0.05092341,71274.0,71259.0,0.042088]
[1773540103458,0.05092341,71274.0,71259.0,0.04212803]
[1773540103663,0.05092341,71274.0,71260.0,0.042088]
[1773540104058,0.05092341,71271.0,71249.0,0.042094]
[1773540104261,0.05092341,71269.0,71248.0,0.0014]
[1773540104872,0.05092341,71267.0,71248.0,0.0014]
[1773540105071,0.05092341,71265.0,71253.0,0.042092]
[1773540106269,0.05092341,71265.0,71255.0,0.042091]
[1773540106489,0.0014,71266.0,71251.0,0.05218773]
[1773540106766,0.0014,71265.0,71251.0,0.05218773]
[1773540106964,0.01123,71272.0,71251.0,0.05218773]
[1773540107271,0.0014,71271.0,71259.0,0.042089]
[1773540107466,0.05232341,71272.0,71251.0,0.05218773]
[1773540107669,0.05232341,71272.0,71261.0,0.042087]
[1773540107875,0.0014,71272.0,71261.0,0.042087]
[1773540108072,0.0014,71272.0,71262.0,0.042087]
[1773540108280,0.0014,71274.0,71258.0,0.05218773]
[1773540108671,0.0014,71273.0,71265.0,0.042085]
[1773540108873,0.0014,71272.0,71260.0,0.042088]
[1773540109071,0.0014,71271.0,71262.0,0.042087]
[1773540109370,0.0014,71277.0,71266.0,0.042085]
[1773540109675,0.0014,71276.0,71266.0,0.042085]
[1773540109871,0.04877935,71276.0,71252.0,0.05130618]
[1773540110067,0.04877935,71270.0,71256.0,0.042091]
[1773540110573,0.04877935,71270.0,71258.0,0.042089]
[1773540110769,0.0014,71272.0,71255.0,0.05130618]
[1773540111368,0.0014,71272.0,71260.0,0.0497853]
[1773540111667,0.0014,71272.0,71255.0,0.0014]
[1773540111965,0.01123,71280.0,71257.0,0.0497853]
[1773540112165,0.01123,71280.0,71269.0,0.0497853]
[1773540112376,0.01263,71280.0,71269.0,0.0497853]
[1773540112676,0.0014,71279.0,71269.0,0.0497853]
[1773540112876,0.01123,71280.0,71269.0,0.0497853]
[1773540113078,0.01123,71280.0,71270.0,0.042082]
[1773540113379,0.00195018,71281.0,71270.0,0.042082]
[1773540113774,0.00195018,71281.0,71271.0,0.042081]
[1773540114077,0.00195018,71281.0,71272.0,0.042081]
[1773540114378,0.042081,71273.0,71247.0,0.0497853]
[1773540114569,0.00195018,71281.0,71260.0,0.08863494]
[1773540114769,0.00195018,71281.0,71271.0,0.042081]
[1773540114965,0.00195018,71281.0,71263.0,0.0497853]
[1773540115168,0.00195018,71281.0,71275.0,0.0497853]
[1773540115477,0.0014,71303.0,71295.0,0.01991]
[1773540115679,0.0014,71303.0,71287.0,0.0497853]
[1773540115873,0.0014,71303.0,71291.0,0.04207]
[1773540116181,0.0014,71303.0,71290.0,0.0497853]
[1773540116385,0.0014,71303.0,71286.0,0.0014]
[1773540116386,0.0014,71303.0,71287.0,0.042072]
[1773540116679,0.0014,71303.0,71289.0,0.042071]
[1773540116867,0.0014,71303.0,71287.0,0.042072]
[1773540117071,0.0014,71303.0,71289.0,0.042071]
[1773540117782,0.042064,71302.0,71286.0,0.043472]
[1773540118379,0.0014,71303.0,71286.0,0.0014]
[1773540118587,0.04984108,71303.0,71283.0,0.043475]
[1773540118775,0.042068,71295.0,71281.0,0.0014]
[1773540118975,0.09190908,71296.0,71281.0,0.0014]
[1773540119178,0.04844108,71295.0,71281.0,0.0014]
[1773540119376,0.0014,71296.0,71281.0,0.043476]
[1773540119681,0.0014,71296.0,71277.0,0.0497853]
[1773540119682,0.04984108,71296.0,71275.0,0.0014]
[1773540120178,0.04984108,71296.0,71279.0,0.042077]
[1773540120179,0.042068,71295.0,71279.0,0.042077]
[1773540120484,0.042069,71293.0,71279.0,0.042077]
[1773540120782,0.09051008,71293.0,71279.0,0.042077]
[1773540120983,0.09051008,71293.0,71275.0,0.0014]
[1773540120984,0.04844108,71297.0,71284.0,0.042074]
[1773540121173,0.0014,71296.0,71284.0,0.042074]
[1773540121572,0.092065,71300.0,71280.0,0.0497853]
[1773540121573,0.05,71300.0,71280.0,0.0497853]
[1773540121788,0.05,71300.0,71262.0,0.17091309]
[1773540121789,1e-06,71300.0,71282.0,0.0497853]
[1773540121975,1e-06,71300.0,71293.0,0.0918533]
[1773540122580,1e-06,71300.0,71293.0,0.042068]
[1773540122777,1e-06,71300.0,71289.0,0.0497853]
[1773540122982,1e-06,71300.0,71286.0,0.042072]
[1773540123184,0.04844208,71300.0,71285.0,0.042073]
[1773540123379,0.0014,71299.0,71289.0,0.042071]
[1773540123584,0.0014,71299.0,71286.0,0.042072]
[1773540123886,0.0014,71298.0,71287.0,0.042072]
[1773540125390,0.0014,71298.0,71288.0,0.042071]
[1773540125983,0.04984108,71298.0,71283.0,0.042075]
[1773540126183,0.04984108,71298.0,71284.0,0.042074]
[1773540128495,0.042066,71297.0,71284.0,0.042074]
[1773540129296,0.04984108,71298.0,71276.0,0.0014]
[1773540129493,0.042068,71295.0,71282.0,0.042075]
[1773540129685,0.042068,71295.0,71280.0,0.042076]
[1773540130192,0.042069,71293.0,71279.0,0.042077]
[1773540130596,0.04844108,71296.0,71277.0,0.042078]
[1773540131196,0.04844108,71296.0,71278.0,0.30573169]
[1773540131495,0.04844108,71296.0,71279.0,0.30573169]
[1773540131682,0.04844108,71296.0,71280.0,0.30573169]
[1773540131881,0.04844108,71296.0,71281.0,0.30573169]
[1773540132111,0.042069,71293.0,71279.0,0.042077]
[1773540132395,0.04207,71292.0,71280.0,0.30588352]
[1773540132600,0.0014,71291.0,71281.0,0.30588352]
[1773540132786,0.0014,71291.0,71282.0,0.30588352]
[1773540133086,0.0014,71291.0,71278.0,0.042078]
[1773540133286,0.0014,71291.0,71279.0,0.30590956]
[1773540133493,0.04207,71292.0,71280.0,0.34798556]
[1773540133494,0.0014,71290.0,71280.0,0.34798556]
[1773540133794,0.0014,71290.0,71281.0,0.30590956]
[1773540134094,0.0014,71290.0,71282.0,0.30590956]
[1773540134293,0.0014,71290.0,71283.0,0.30608853]
[1773540134495,0.0014,71290.0,71278.0,0.042077]
[1773540134695,0.0014,71290.0,71192.0,1.99749624]
[1773540134696,0.04844108,71289.0,71274.0,0.16437933]
[1773540134893,0.04844108,71279.0,71260.0,0.0497853]
[1773540135088,0.0014,71278.0,71260.0,0.0497853]
[1773540135294,0.0014,71278.0,71266.0,0.042085]
[1773540135689,0.0014,71278.0,71267.0,0.042084]
[1773540136390,0.0014,71278.0,71268.0,0.042083]
[1773540136886,0.0014,71278.0,71266.0,0.042085]
[1773540137290,0.0014,71278.0,71260.0,0.0497853]
[1773540137989,0.0014,71278.0,71256.0,0.00015346]
[1773540137990,0.04984108,71278.0,71266.0,0.042084]
[1773540138796,0.04984108,71278.0,71257.0,0.0497853]
[1773540139202,0.042066,71300.0,71261.0,0.0497853]
[1773540139495,0.042066,71300.0,71260.0,0.13072294]
[1773540139496,0.042066,71298.0,71263.0,0.0497853]
[1773540139695,1e-06,71300.0,71265.0,0.0497853]
[1773540139696,0.04844108,71289.0,71265.0,0.0497853]
[1773540139898,0.04844108,71287.0,71265.0,0.0497853]
[1773540140094,0.04844108,71287.0,71275.0,0.042079]
[1773540140295,0.04844108,71291.0,71269.0,0.0497853]
[1773540140496,0.09050908,71295.0,71282.0,0.042075]
[1773540140696,0.043469,71294.0,71280.0,0.042076]
[1773540140897,0.09191008,71294.0,71280.0,0.042076]
[1773540141101,0.0014,71293.0,71280.0,0.042076]
[1773540141796,0.043469,71293.0,71280.0,0.042076]
[1773540141992,0.1035485,71293.0,71280.0,0.042076]
[1773540142193,0.0600795,71292.0,71277.0,0.042078]
[1773540142798,0.0600795,71292.0,71275.0,0.042079]
[1773540142999,0.0600795,71292.0,71274.0,0.04208]
[1773540143197,0.0014,71293.0,71274.0,0.04208]
[1773540143198,0.0600795,71287.0,71274.0,0.04208]
[1773540143394,1e-06,71300.0,71267.0,0.05880084]
[1773540143600,0.04207,71292.0,71267.0,0.05880084]
[1773540143800,0.1035495,71291.0,71277.0,0.042078]
[1773540144101,0.0600795,71290.0,71277.0,0.042078]
[1773540144291,0.0600795,71289.0,71269.0,0.05880084]
[1773540144495,0.0014,71288.0,71278.0,0.042078]
[1773540144690,0.0014,71287.0,71278.0,0.042078]
[1773540145507,0.0014,71287.0,71279.0,0.042077]
[1773540145710,0.0014,71286.0,71279.0,0.042077]
[1773540145906,0.0014,71285.0,71277.0,0.042078]
[1773540146201,0.0014,71284.0,71277.0,0.042078]
[1773540146406,0.0014,71283.0,71277.0,0.042078]
[1773540148807,0.04207,71292.0,71278.0,0.042078]
[1773540149005,0.04347,71291.0,71278.0,0.042078]
[1773540149506,0.042071,71290.0,71276.0,0.042079]
[1773540149701,0.042071,71290.0,71277.0,0.042078]
[1773540149896,0.042072,71289.0,71277.0,0.042078]
[1773540150106,0.0600795,71290.0,71269.0,0.042083]
[1773540150301,0.1021555,71281.0,71269.0,0.042083]
[1773540150496,0.0014,71280.0,71269.0,0.042083]
[1773540150701,0.0014,71280.0,71270.0,0.042082]
[1773540150899,0.01122,71298.0,71281.0,0.05880084]
[1773540151101,1e-06,71300.0,71281.0,0.05880084]
[1773540151303,0.0014,71299.0,71271.0,0.05880084]
[1773540151500,1e-06,71300.0,71293.0,0.042068]
[1773540151805,1e-06,71300.0,71290.0,0.05880084]
[1773540151806,0.0014,71299.0,71291.0,0.04207]
[1773540152002,0.0014,71299.0,71290.0,0.05880084]
[1773540152203,0.0014,71298.0,71293.0,0.042069]
[1773540152403,1e-06,71300.0,71293.0,0.042069]
[1773540152803,0.0014,71299.0,71293.0,0.042069]
[1773540153905,1e-06,71300.0,71293.0,0.042069]
[1773540154208,0.0014,71298.0,71289.0,0.042071]
[1773540154411,0.0014,71297.0,71293.0,0.05880084]
[1773540154710,0.0014,71297.0,71268.0,0.29172631]
[1773540154900,0.042068,71295.0,71269.0,0.06020084]
[1773540155101,0.0014,71297.0,71270.0,0.05880084]
[1773540155708,0.0014,71297.0,71272.0,0.05880084]
[1773540155906,0.042067,71296.0,71272.0,0.05880084]
[1773540156110,0.042069,71294.0,71281.0,0.042075]
[1773540156308,0.042067,71296.0,71282.0,0.042075]
[1773540156611,0.0014,71297.0,71276.0,0.05880084]
[1773540156612,0.0614795,71297.0,71276.0,0.05880084]
[1773540156909,0.042067,71296.0,71281.0,0.042075]
[1773540157310,0.042069,71294.0,71281.0,0.042075]
[1773540157511,0.0600795,71297.0,71276.0,0.05880084]
[1773540157706,1e-06,71300.0,71277.0,0.042078]
[1773540157707,0.04207,71291.0,71277.0,0.042078]
[1773540157902,0.04207,71291.0,71272.0,0.05880084]
[1773540158213,0.04207,71291.0,71269.0,0.05880084]
[1773540158214,0.042074,71285.0,71269.0,0.05880084]
[1773540158416,0.0014,71284.0,71269.0,0.05880084]
[1773540158603,0.0014,71283.0,71273.0,0.04208]
[1773540158800,0.0014,71282.0,71269.0,0.05880084]
[1773540158999,0.0014,71281.0,71264.0,0.0014]
[1773540159209,0.0014,71280.0,71265.0,0.05880084]
[1773540159705,0.0014,71280.0,71264.0,0.0014]
[1773540159905,0.0014,71280.0,71264.0,0.06020084]
[1773540160308,0.0014,71280.0,71269.0,0.042082]
[1773540160612,0.0014,71280.0,71267.0,0.042084]
[1773540161014,0.01122,71293.0,71263.0,0.05880084]
[1773540161221,0.0014,71294.0,71265.0,0.05880084]
[1773540161410,0.0014,71293.0,71267.0,0.05880084]
[1773540161611,0.0014,71292.0,71285.0,0.042073]
[1773540161817,0.0014,71291.0,71285.0,0.042073]
[1773540162022,0.042066,71299.0,71285.0,0.042073]
[1773540162218,0.0014,71298.0,71281.0,0.05880084]
[1773540163018,0.042066,71299.0,71285.0,0.042073]
[1773540163316,1e-06,71300.0,71285.0,0.042073]
[1773540163317,0.043466,71298.0,71285.0,0.042073]
[1773540163517,0.043466,71298.0,71265.0,0.24964331]
[1773540163824,0.043466,71298.0,71285.0,0.042073]
[1773540164211,0.0014,71298.0,71278.0,0.05880084]
[1773540164514,0.0614795,71298.0,71283.0,0.042074]
[1773540165315,0.0014,71298.0,71286.0,0.042073]
[1773540165515,0.0014,71297.0,71285.0,0.05880084]
[1773540166008,0.0014,71297.0,71289.0,0.042071]
[1773540166524,0.0014,71297.0,71282.0,0.05880084]
[1773540166819,0.0014,71297.0,71292.0,0.042069]
[1773540167021,0.00138436,71304.0,71292.0,0.042069]
[1773540167415,0.0014,71303.0,71292.0,0.042069]
[1773540167624,0.0014,71303.0,71293.0,0.042068]
[1773540168919,0.0014,71303.0,71286.0,0.05880084]
[1773540169224,0.0014,71303.0,71291.0,0.04207]
[1773540169718,0.0600795,71300.0,71282.0,0.0014]
[1773540169911,0.0600795,71298.0,71287.0,0.042072]
[1773540170112,0.00138436,71304.0,71286.0,0.05744898]
[1773540170314,0.0014,71303.0,71295.0,0.042068]
[1773540170820,0.005,71314.0,71281.0,0.0686569]
[1773540171024,0.21987785,71314.0,71302.0,0.042063]
[1773540171224,0.21987785,71314.0,71303.0,0.05744898]
[1773540171420,0.0014,71318.0,71303.0,0.05744898]
[1773540171625,0.0014,71318.0,71298.0,0.042066]
[1773540171626,0.21987785,71317.0,71298.0,0.042066]
[1773540172035,0.0014,71318.0,71298.0,0.042066]
[1773540172221,0.21987785,71317.0,71298.0,0.042066]
[1773540172416,0.05602436,71316.0,71295.0,0.042067]
[1773540172622,0.05602436,71315.0,71292.0,0.0014]
[1773540173020,0.21987785,71314.0,71292.0,0.05985857]
[1773540173420,0.15642396,71314.0,71303.0,0.05845857]
[1773540173616,0.0014,71313.0,71303.0,0.05845857]
[1773540174122,0.0014,71313.0,71305.0,0.042061]
[1773540174429,0.15642396,71314.0,71305.0,0.042061]
[1773540174726,0.0014,71315.0,71306.0,0.05845857]
[1773540174923,0.00099504,71315.0,71306.0,0.05845857]
[1773540175118,0.00031303,71315.0,71306.0,0.05845857]
[1773540175820,0.042051,71323.0,71309.0,0.05845857]
[1773540176219,0.0014,71322.0,71309.0,0.05845857]
[1773540176427,0.043452,71322.0,71309.0,0.05845857]
[1773540176632,0.042052,71322.0,71309.0,0.05845857]
[1773540176828,0.05602436,71330.0,71309.0,0.05845857]
[1773540176829,0.043453,71321.0,71309.0,0.05845857]
[1773540177032,0.042055,71317.0,71304.0,0.10052057]
[1773540177237,0.042054,71319.0,71305.0,0.042061]
[1773540177833,0.042054,71319.0,71305.0,0.10051957]
[1773540178036,0.1495348,71320.0,71306.0,0.042061]
[1773540178439,0.1495348,71320.0,71312.0,0.042057]
[1773540178934,0.0014,71319.0,71312.0,0.042058]
[1773540179133,0.0014,71319.0,71310.0,0.042059]
[1773540179641,0.0014,71319.0,71311.0,0.042058]
[1773540180435,0.042061,71306.0,71304.0,4.001e-05]
[1773540180637,0.042061,71306.0,71268.0,0.58938969]
[1773540180638,0.0014,71305.0,71284.0,0.05985857]
[1773540180843,0.05602436,71309.0,71297.0,0.042066]
[1773540181141,0.0014,71304.0,71294.0,0.042068]
[1773540181336,0.1495348,71308.0,71289.0,0.05845857]
[1773540181540,0.0014,71307.0,71289.0,0.05845857]
[1773540181942,0.0014,71309.0,71305.0,0.042061]
[1773540182133,0.1915848,71326.0,71312.0,0.042058]
[1773540182337,0.1915848,71326.0,71281.0,0.1107329]
[1773540182338,0.41902825,71353.0,71313.0,0.0014]
[1773540182536,0.41902825,71377.0,71348.0,0.05845857]
[1773540182741,0.280038,71401.0,71341.0,0.0311538]
[1773540182742,0.37288712,71416.0,71367.0,0.28017]
[1773540182941,0.00161426,71440.0,71381.0,0.280114]
[1773540183249,0.00161426,71440.0,71402.0,0.00902236]
[1773540183250,0.05166269,71431.0,71402.0,0.00902236]
[1773540183439,0.06404133,71439.0,71411.0,0.00902236]
[1773540183639,0.041984,71438.0,71413.0,0.0530353]
[1773540183834,0.11570402,71439.0,71415.0,0.05432566]
[1773540183835,0.06404133,71439.0,71415.0,0.05432566]
[1773540184039,0.00161426,71440.0,71391.0,0.26293835]
[1773540184040,0.07464825,71417.0,71391.0,6.6e-07]
[1773540184343,0.07464825,71401.0,71366.0,0.042026]
[1773540184544,0.03293732,71389.0,71369.0,0.00907468]
[1773540184756,0.08466083,71383.0,71365.0,0.00012835]
[1773540184939,0.0014,71382.0,71365.0,0.00012835]
[1773540185241,0.08856374,71400.0,71365.0,0.00012835]
[1773540185242,0.08466083,71393.0,71366.0,1.5]
[1773540185548,0.0084096,71392.0,71366.0,1.5]
[1773540185850,0.12831712,71392.0,71370.0,0.042023]
[1773540186042,0.12831712,71392.0,71371.0,0.0014]
[1773540186239,0.08630612,71392.0,71371.0,0.0014]
[1773540186540,0.08616515,71388.0,71316.0,0.3086]